[Event "Early-Titled-Tuesday-Blitz-February-20-2024"]
[Site "Chess.com"]
[Date "2024.02.20"]
[Round "7"]
[White "viktorgen2021"]
[Black "Dubs123"]
[Result "0-1"]
[WhiteElo "2529"]
[BlackElo "2392"]
[TimeControl "180+1"]
[EndTime "9:19:29 PST"]
[Termination "Dubs123 won by resignation"]

1. d4 {[%clk 0:02:54.1]} 1... Nf6 {[%clk 0:02:58.3]} 2. Nf3 {[%clk 0:02:53.7]}
2... b6 {[%clk 0:02:57.7]} 3. g3 {[%clk 0:02:54.2]} 3... Bb7 {[%clk 0:02:57.6]}
4. Bg2 {[%clk 0:02:54.9]} 4... e6 {[%clk 0:02:57.9]} 5. O-O {[%clk 0:02:55.6]}
5... Be7 {[%clk 0:02:58.1]} 6. a4 {[%clk 0:02:55.8]} 6... a5 {[%clk 0:02:54.6]}
7. c3 {[%clk 0:02:52.7]} 7... O-O {[%clk 0:02:53.6]} 8. Bg5 {[%clk 0:02:52.3]}
8... h6 {[%clk 0:02:51.4]} 9. Bxf6 {[%clk 0:02:52.4]} 9... Bxf6 {[%clk
0:02:51.7]} 10. Nbd2 {[%clk 0:02:53.1]} 10... d6 {[%clk 0:02:48.9]} 11. e4
{[%clk 0:02:52.9]} 11... Nd7 {[%clk 0:02:49]} 12. Re1 {[%clk 0:02:45.9]} 12...
e5 {[%clk 0:02:48.6]} 13. d5 {[%clk 0:02:41.3]} 13... Be7 {[%clk 0:02:44.4]} 14.
Nf1 {[%clk 0:02:25.1]} 14... Ba6 {[%clk 0:02:39]} 15. Ne3 {[%clk 0:02:20.5]}
15... Nc5 {[%clk 0:02:37.3]} 16. Nf5 {[%clk 0:02:14.6]} 16... Qd7 {[%clk
0:02:17]} 17. Bh3 {[%clk 0:02:11.3]} 17... Qe8 {[%clk 0:02:14.6]} 18. Bf1 {[%clk
0:02:06.2]} 18... Bxf1 {[%clk 0:02:09.8]} 19. Kxf1 {[%clk 0:02:07.1]} 19... Bf6
{[%clk 0:01:55.2]} 20. Qc2 {[%clk 0:02:02.9]} 20... Qd7 {[%clk 0:01:49.5]} 21.
h4 {[%clk 0:01:57.6]} 21... g6 {[%clk 0:01:47.9]} 22. Ne3 {[%clk 0:01:47.5]}
22... Bg7 {[%clk 0:01:45.8]} 23. Kg2 {[%clk 0:01:45.9]} 23... f5 {[%clk
0:01:45]} 24. h5 {[%clk 0:01:40.9]} 24... fxe4 {[%clk 0:01:42]} 25. Nh4 {[%clk
0:01:38.2]} 25... g5 {[%clk 0:01:30.6]} 26. Ng6 {[%clk 0:01:37.5]} 26... Rf3
{[%clk 0:01:21.5]} 27. Nf1 {[%clk 0:01:37.5]} 27... Qg4 {[%clk 0:01:17.2]} 28.
Nh2 {[%clk 0:01:26.6]} 28... Qxh5 {[%clk 0:01:13.6]} 29. Rxe4 {[%clk 0:01:17.5]}
29... Nxe4 {[%clk 0:01:10.2]} 30. Qxe4 {[%clk 0:01:16.6]} 30... Rxf2+ {[%clk
0:01:09.9]} 31. Kxf2 {[%clk 0:01:14.4]} 31... Qxh2+ {[%clk 0:01:09.7]} 32. Kf3
{[%clk 0:01:12.2]} 32... Qxb2 {[%clk 0:01:02.9]} 33. Rf1 {[%clk 0:01:05.5]}
33... Re8 {[%clk 0:00:33.5]} 34. Kg4 {[%clk 0:00:44.6]} 34... Qxc3 {[%clk
0:00:31.5]} 35. Qf5 {[%clk 0:00:44.7]} 35... Qd4+ {[%clk 0:00:27.7]} 36. Kh5
{[%clk 0:00:37.4]} 36... Qxd5 {[%clk 0:00:26]} 37. Qd7 {[%clk 0:00:36.3]} 37...
Qe6 {[%clk 0:00:20.2]} 38. Qxc7 {[%clk 0:00:27.2]} 38... Qh3+ {[%clk 0:00:19.4]}
39. Nh4 {[%clk 0:00:27.6]} 39... Qxf1 {[%clk 0:00:17.5]} 40. Qc4+ {[%clk
0:00:25.4]} 40... Qf7+ {[%clk 0:00:16.8]} 0-1

[Event "Early-Titled-Tuesday-Blitz-February-20-2024"]
[Site "Chess.com"]
[Date "2024.02.20"]
[Round "7"]
[White "Karttunen"]
[Black "Lion-Al-Messi"]
[Result "1-0"]
[WhiteElo "2681"]
[BlackElo "2541"]
[TimeControl "180+1"]
[EndTime "9:19:30 PST"]
[Termination "Karttunen won by checkmate"]

1. e4 {[%clk 0:03:00.9]} 1... e6 {[%clk 0:02:59.1]} 2. d4 {[%clk 0:03:00.6]}
2... d5 {[%clk 0:02:59.3]} 3. Nc3 {[%clk 0:03:00.5]} 3... Nf6 {[%clk 0:02:59.3]}
4. e5 {[%clk 0:02:59.9]} 4... Nfd7 {[%clk 0:02:59.5]} 5. f4 {[%clk 0:02:59.6]}
5... c5 {[%clk 0:02:59.8]} 6. Nf3 {[%clk 0:02:59.8]} 6... Nc6 {[%clk 0:02:59.7]}
7. Be3 {[%clk 0:02:59.8]} 7... a6 {[%clk 0:02:59.9]} 8. Qd2 {[%clk 0:02:57.9]}
8... b5 {[%clk 0:02:59.7]} 9. a3 {[%clk 0:02:56.7]} 9... Qb6 {[%clk 0:02:58.7]}
10. Ne2 {[%clk 0:02:39.9]} 10... Bb7 {[%clk 0:02:56.2]} 11. Ng3 {[%clk
0:02:34.1]} 11... g6 {[%clk 0:02:53.6]} 12. Be2 {[%clk 0:02:23.8]} 12... h5
{[%clk 0:02:48.9]} 13. O-O {[%clk 0:02:22]} 13... h4 {[%clk 0:02:47.7]} 14. Nh1
{[%clk 0:02:21.7]} 14... h3 {[%clk 0:02:46.7]} 15. g4 {[%clk 0:02:17.6]} 15...
O-O-O {[%clk 0:02:38.7]} 16. b4 {[%clk 0:02:09.1]} 16... cxb4 {[%clk 0:02:34.1]}
17. axb4 {[%clk 0:02:09]} 17... Bxb4 {[%clk 0:02:35]} 18. c3 {[%clk 0:02:09.4]}
18... Be7 {[%clk 0:02:34.6]} 19. Qa2 {[%clk 0:01:50.6]} 19... Qc7 {[%clk
0:02:24.1]} 20. Ng3 {[%clk 0:01:48.4]} 20... Nb6 {[%clk 0:02:23.3]} 21. Rfb1
{[%clk 0:01:36.8]} 21... Nc4 {[%clk 0:02:22.5]} 22. Bf2 {[%clk 0:01:33]} 22...
Rdg8 {[%clk 0:02:02.7]} 23. g5 {[%clk 0:01:32.7]} 23... Kd7 {[%clk 0:01:48.8]}
24. Nf1 {[%clk 0:01:23]} 24... Ra8 {[%clk 0:01:39.9]} 25. Ne3 {[%clk 0:01:18.4]}
25... Ke8 {[%clk 0:01:35.7]} 26. Ng4 {[%clk 0:01:16.5]} 26... Rc8 {[%clk
0:01:22.3]} 27. Bd3 {[%clk 0:01:08.9]} 27... b4 {[%clk 0:01:04.5]} 28. Bxc4
{[%clk 0:00:58.3]} 28... dxc4 {[%clk 0:01:04.2]} 29. Qxc4 {[%clk 0:00:58.5]}
29... Qd7 {[%clk 0:00:56.5]} 30. Qb3 {[%clk 0:00:51.6]} 30... Kf8 {[%clk
0:00:44.3]} 31. c4 {[%clk 0:00:51.5]} 31... a5 {[%clk 0:00:38]} 32. Rd1 {[%clk
0:00:38]} 32... Nb8 {[%clk 0:00:31.8]} 33. Nf6 {[%clk 0:00:25.6]} 33... Bxf6
{[%clk 0:00:31.3]} 34. gxf6 {[%clk 0:00:26.2]} 34... Qc6 {[%clk 0:00:08.9]} 35.
d5 {[%clk 0:00:26.4]} 35... Qxc4 {[%clk 0:00:09.2]} 36. Qxc4 {[%clk 0:00:25.5]}
36... Rxc4 {[%clk 0:00:10.1]} 37. dxe6 {[%clk 0:00:23.8]} 37... fxe6 {[%clk
0:00:05.6]} 38. Rd8+ {[%clk 0:00:23.2]} 38... Kf7 {[%clk 0:00:05.9]} 39. Ng5#
{[%clk 0:00:23.9]} 1-0

[Event "Early-Titled-Tuesday-Blitz-February-20-2024"]
[Site "Chess.com"]
[Date "2024.02.20"]
[Round "7"]
[White "azikom"]
[Black "emeli_chess"]
[Result "1-0"]
[WhiteElo "2661"]
[BlackElo "2415"]
[TimeControl "180+1"]
[EndTime "9:19:30 PST"]
[Termination "azikom won by resignation"]

1. f4 {[%clk 0:03:00]} 1... e5 {[%clk 0:03:00.9]} 2. fxe5 {[%clk 0:02:59.7]}
2... d6 {[%clk 0:02:57.7]} 3. exd6 {[%clk 0:03:00.6]} 3... Bxd6 {[%clk
0:02:57.8]} 4. Nf3 {[%clk 0:03:01.1]} 4... g5 {[%clk 0:02:56.1]} 5. d4 {[%clk
0:03:01.3]} 5... g4 {[%clk 0:02:51.4]} 6. Ne5 {[%clk 0:03:01.4]} 6... Nf6 {[%clk
0:02:37.3]} 7. Nc3 {[%clk 0:02:59.5]} 7... Nc6 {[%clk 0:02:36]} 8. Bf4 {[%clk
0:02:57]} 8... Nh5 {[%clk 0:02:29.4]} 9. Nxc6 {[%clk 0:02:56.4]} 9... bxc6
{[%clk 0:02:26.4]} 10. Bxd6 {[%clk 0:02:56.1]} 10... cxd6 {[%clk 0:02:23.8]} 11.
Qd3 {[%clk 0:02:53.4]} 11... Be6 {[%clk 0:02:15.5]} 12. e4 {[%clk 0:02:51]}
12... Qa5 {[%clk 0:02:01.4]} 13. d5 {[%clk 0:02:44.7]} 13... Nf4 {[%clk
0:01:44.3]} 14. Qd4 {[%clk 0:02:39.5]} 14... O-O {[%clk 0:01:12]} 15. dxe6
{[%clk 0:02:14]} 15... Nxe6 {[%clk 0:01:07.7]} 16. Qa4 {[%clk 0:02:08.9]} 16...
Qg5 {[%clk 0:01:03]} 17. Be2 {[%clk 0:02:00.6]} 17... Qe3 {[%clk 0:01:02]} 18.
Nd1 {[%clk 0:01:24.2]} 18... Qb6 {[%clk 0:00:59.4]} 19. Qb3 {[%clk 0:01:21.7]}
19... Qa5+ {[%clk 0:00:47.4]} 20. Qc3 {[%clk 0:01:19.1]} 20... Qb6 {[%clk
0:00:40.7]} 21. Bxg4 {[%clk 0:01:14.1]} 21... Nd4 {[%clk 0:00:36.4]} 22. Qd3
{[%clk 0:00:52.7]} 22... f5 {[%clk 0:00:33]} 23. Bxf5 {[%clk 0:00:47.6]} 23...
Nxf5 {[%clk 0:00:27.9]} 24. exf5 {[%clk 0:00:47.1]} 24... Rae8+ {[%clk 0:00:28]}
25. Kf1 {[%clk 0:00:46.8]} 25... Qa5 {[%clk 0:00:25.3]} 26. Ne3 {[%clk
0:00:34.9]} 26... Rxe3 {[%clk 0:00:24.1]} 27. Qxe3 {[%clk 0:00:34]} 27... Qxf5+
{[%clk 0:00:24.2]} 28. Kg1 {[%clk 0:00:33.6]} 28... Qxc2 {[%clk 0:00:20]} 29. h4
{[%clk 0:00:32.2]} 29... Qxb2 {[%clk 0:00:18.9]} 30. Re1 {[%clk 0:00:31.5]}
30... c5 {[%clk 0:00:17]} 31. Rh3 {[%clk 0:00:31.7]} 31... Rf6 {[%clk
0:00:13.7]} 32. Rg3+ {[%clk 0:00:31.3]} 32... Rg6 {[%clk 0:00:13.9]} 33. Rxg6+
{[%clk 0:00:30.7]} 33... hxg6 {[%clk 0:00:14.2]} 34. Qe6+ {[%clk 0:00:30.8]}
34... Kg7 {[%clk 0:00:14.1]} 35. Qxd6 {[%clk 0:00:29.8]} 35... Qc3 {[%clk
0:00:08.7]} 36. Qe5+ {[%clk 0:00:29.2]} 1-0

[Event "Early-Titled-Tuesday-Blitz-February-20-2024"]
[Site "Chess.com"]
[Date "2024.02.20"]
[Round "7"]
[White "Barmen_EV"]
[Black "IngOscarArdila"]
[Result "1-0"]
[WhiteElo "2509"]
[BlackElo "2242"]
[TimeControl "180+1"]
[EndTime "9:19:32 PST"]
[Termination "Barmen_EV won by resignation"]

1. e4 {[%clk 0:02:58.4]} 1... e5 {[%clk 0:02:59.7]} 2. Nf3 {[%clk 0:02:58.1]}
2... Nf6 {[%clk 0:02:59.9]} 3. Nc3 {[%clk 0:02:58]} 3... Nc6 {[%clk 0:02:59.9]}
4. Bb5 {[%clk 0:02:56]} 4... Bb4 {[%clk 0:02:59.5]} 5. O-O {[%clk 0:02:55.4]}
5... O-O {[%clk 0:02:59.4]} 6. Bxc6 {[%clk 0:02:54.6]} 6... bxc6 {[%clk
0:02:59.3]} 7. d3 {[%clk 0:02:55.3]} 7... d6 {[%clk 0:02:57.8]} 8. h3 {[%clk
0:02:55.7]} 8... h6 {[%clk 0:02:57.4]} 9. a3 {[%clk 0:02:55.4]} 9... Ba5 {[%clk
0:02:57.3]} 10. Be3 {[%clk 0:02:54.8]} 10... Qe7 {[%clk 0:02:56.9]} 11. Qd2
{[%clk 0:02:54.8]} 11... Rb8 {[%clk 0:02:54.5]} 12. b4 {[%clk 0:02:53.8]} 12...
Bb6 {[%clk 0:02:54.1]} 13. Rfe1 {[%clk 0:02:54.4]} 13... Nh5 {[%clk 0:02:52.6]}
14. d4 {[%clk 0:02:53.6]} 14... Qf6 {[%clk 0:02:35.4]} 15. dxe5 {[%clk
0:02:41.8]} 15... dxe5 {[%clk 0:02:34.4]} 16. Bxb6 {[%clk 0:02:41.5]} 16... cxb6
{[%clk 0:02:31.5]} 17. Qe3 {[%clk 0:02:39.1]} 17... Nf4 {[%clk 0:02:29]} 18. Ne2
{[%clk 0:02:33.8]} 18... Nxe2+ {[%clk 0:02:20.8]} 19. Rxe2 {[%clk 0:02:34.3]}
19... Be6 {[%clk 0:02:20.7]} 20. Qc3 {[%clk 0:02:32.8]} 20... Rbc8 {[%clk
0:02:04]} 21. Qxe5 {[%clk 0:02:30.9]} 21... Qxe5 {[%clk 0:02:02.5]} 22. Nxe5
{[%clk 0:02:31.8]} 22... Rfd8 {[%clk 0:02:02.9]} 23. Nf3 {[%clk 0:02:27.8]}
23... Bc4 {[%clk 0:02:00.2]} 24. Rd2 {[%clk 0:02:27.6]} 24... Rxd2 {[%clk
0:01:59.4]} 25. Nxd2 {[%clk 0:02:28.5]} 25... Be6 {[%clk 0:01:58.5]} 26. Kf1
{[%clk 0:02:28]} 26... Rd8 {[%clk 0:01:57.9]} 27. Ke2 {[%clk 0:02:27.9]} 27...
f6 {[%clk 0:01:57.6]} 28. a4 {[%clk 0:02:25.2]} 28... Kf7 {[%clk 0:01:55.3]} 29.
a5 {[%clk 0:02:25.2]} 29... b5 {[%clk 0:01:51.9]} 30. Rc1 {[%clk 0:02:23.8]}
30... Rd4 {[%clk 0:01:46.1]} 31. c3 {[%clk 0:02:22.3]} 31... Bc4+ {[%clk
0:01:40.2]} 32. Nxc4 {[%clk 0:02:12.6]} 32... Rxc4 {[%clk 0:01:41.1]} 33. Kd3
{[%clk 0:02:07.9]} 33... c5 {[%clk 0:01:39.8]} 34. Rb1 {[%clk 0:02:02.8]} 34...
a6 {[%clk 0:01:37.7]} 35. f4 {[%clk 0:01:54.3]} 35... Ke6 {[%clk 0:01:37.4]} 36.
g4 {[%clk 0:01:52.3]} 36... g5 {[%clk 0:01:36.4]} 37. fxg5 {[%clk 0:01:42.6]}
37... hxg5 {[%clk 0:01:35.1]} 38. bxc5 {[%clk 0:01:40.6]} 38... Ke5 {[%clk
0:01:25.4]} 39. Rf1 {[%clk 0:01:38.8]} 39... Ra4 {[%clk 0:01:10.7]} 40. Rf5+
{[%clk 0:01:35.7]} 40... Ke6 {[%clk 0:01:11]} 41. c6 {[%clk 0:01:32.8]} 41...
Rc4 {[%clk 0:01:07.8]} 42. e5 {[%clk 0:01:29.5]} 42... fxe5 {[%clk 0:01:03]} 43.
Rxg5 {[%clk 0:01:29.7]} 43... e4+ {[%clk 0:01:00.2]} 44. Kd2 {[%clk 0:01:22.1]}
44... Kf6 {[%clk 0:00:57.6]} 45. Rf5+ {[%clk 0:01:18.3]} 45... Ke6 {[%clk
0:00:57.3]} 46. h4 {[%clk 0:01:15.4]} 46... Rxc6 {[%clk 0:00:56.6]} 47. h5
{[%clk 0:01:15]} 47... e3+ {[%clk 0:00:53.5]} 48. Kxe3 {[%clk 0:01:12.8]} 48...
Rxc3+ {[%clk 0:00:54.1]} 49. Kf4 {[%clk 0:01:12.9]} 49... Rc4+ {[%clk
0:00:50.1]} 50. Kg5 {[%clk 0:01:11.5]} 50... b4 {[%clk 0:00:45.5]} 51. h6 {[%clk
0:01:11.1]} 51... b3 {[%clk 0:00:36.4]} 52. Rf6+ {[%clk 0:01:11.3]} 52... Ke5
{[%clk 0:00:34.5]} 53. Rb6 {[%clk 0:01:11.1]} 53... Rc5 {[%clk 0:00:27.1]} 54.
Rxb3 {[%clk 0:01:08.3]} 54... Rxa5 {[%clk 0:00:27.3]} 55. h7 {[%clk 0:01:08.2]}
55... Ke6+ {[%clk 0:00:26.7]} 56. Kg6 {[%clk 0:01:08.4]} 56... Ra4 {[%clk
0:00:25.1]} 57. h8=Q {[%clk 0:01:06.4]} 57... Rxg4+ {[%clk 0:00:24.9]} 58. Kh5
{[%clk 0:01:07.1]} 58... Rg2 {[%clk 0:00:24.9]} 59. Qe8+ {[%clk 0:01:05.9]} 1-0

[Event "Early-Titled-Tuesday-Blitz-February-20-2024"]
[Site "Chess.com"]
[Date "2024.02.20"]
[Round "7"]
[White "vugarrasulov"]
[Black "Durarbayli"]
[Result "1-0"]
[WhiteElo "2954"]
[BlackElo "2981"]
[TimeControl "180+1"]
[EndTime "9:19:33 PST"]
[Termination "vugarrasulov won on time"]

1. e4 {[%clk 0:03:00.9]} 1... e6 {[%clk 0:02:59.8]} 2. d4 {[%clk 0:03:00.3]}
2... d5 {[%clk 0:03:00.5]} 3. exd5 {[%clk 0:03:00.8]} 3... exd5 {[%clk
0:03:01.1]} 4. Nf3 {[%clk 0:03:01.2]} 4... Nc6 {[%clk 0:03:01.5]} 5. h3 {[%clk
0:03:00.5]} 5... Bd6 {[%clk 0:02:58.4]} 6. c4 {[%clk 0:02:57.1]} 6... dxc4
{[%clk 0:02:58.8]} 7. Bxc4 {[%clk 0:02:57.6]} 7... Nf6 {[%clk 0:02:58.9]} 8. O-O
{[%clk 0:02:50.3]} 8... O-O {[%clk 0:02:58.2]} 9. Nc3 {[%clk 0:02:51]} 9... h6
{[%clk 0:02:52]} 10. Qc2 {[%clk 0:02:47.8]} 10... Nb4 {[%clk 0:02:49.2]} 11. Qb1
{[%clk 0:02:45.7]} 11... c6 {[%clk 0:02:43.4]} 12. Bxh6 {[%clk 0:02:28.6]} 12...
gxh6 {[%clk 0:02:20.2]} 13. Qg6+ {[%clk 0:02:26.7]} 13... Kh8 {[%clk 0:02:20.7]}
14. Qxh6+ {[%clk 0:02:27.6]} 14... Nh7 {[%clk 0:02:18.8]} 15. Ne4 {[%clk
0:02:25.2]} 15... Be7 {[%clk 0:02:03.2]} 16. Ne5 {[%clk 0:01:35.5]} 16... Nd5
{[%clk 0:01:48.3]} 17. Bd3 {[%clk 0:01:09.7]} 17... Bf5 {[%clk 0:01:28]} 18.
Rae1 {[%clk 0:01:08.1]} 18... f6 {[%clk 0:00:45.5]} 19. Nd6 {[%clk 0:00:41.9]}
19... Bxd6 {[%clk 0:00:20.3]} 20. Bxf5 {[%clk 0:00:41.1]} 20... Qc7 {[%clk
0:00:20.6]} 21. Ng6+ {[%clk 0:00:31.8]} 21... Kg8 {[%clk 0:00:21]} 22. Nxf8
{[%clk 0:00:21.3]} 22... Rxf8 {[%clk 0:00:20.9]} 23. Re4 {[%clk 0:00:21.5]}
23... Bf4 {[%clk 0:00:12.1]} 24. Rxf4 {[%clk 0:00:18.9]} 24... Nxf4 {[%clk
0:00:06.8]} 25. Bxh7+ {[%clk 0:00:19.5]} 25... Kf7 {[%clk 0:00:03.6]} 26. Bf5
{[%clk 0:00:16.7]} 26... Rg8 {[%clk 0:00:02.9]} 27. g3 {[%clk 0:00:13.8]} 27...
Ne2+ {[%clk 0:00:01.6]} 28. Kh1 {[%clk 0:00:14.1]} 28... Nxd4 {[%clk 0:00:02.5]}
29. Bd3 {[%clk 0:00:08.3]} 29... Qd7 {[%clk 0:00:02.2]} 30. Bc4+ {[%clk
0:00:07.4]} 1-0

[Event "Early-Titled-Tuesday-Blitz-February-20-2024"]
[Site "Chess.com"]
[Date "2024.02.20"]
[Round "7"]
[White "lamomiajunior"]
[Black "Hikaru"]
[Result "0-1"]
[WhiteElo "2729"]
[BlackElo "3254"]
[TimeControl "180+1"]
[EndTime "9:19:34 PST"]
[Termination "Hikaru won by resignation"]

1. d4 {[%clk 0:03:00.9]} 1... a5 {[%clk 0:03:00.9]} 2. e4 {[%clk 0:03:00.6]}
2... c6 {[%clk 0:03:00.8]} 3. Nf3 {[%clk 0:02:58.6]} 3... d5 {[%clk 0:03:00.9]}
4. e5 {[%clk 0:02:59.2]} 4... Bg4 {[%clk 0:03:00.2]} 5. Be2 {[%clk 0:02:55.5]}
5... Bxf3 {[%clk 0:02:57.6]} 6. Bxf3 {[%clk 0:02:55.7]} 6... e6 {[%clk
0:02:58.5]} 7. O-O {[%clk 0:02:56]} 7... Ne7 {[%clk 0:02:58.7]} 8. Be3 {[%clk
0:02:50.1]} 8... c5 {[%clk 0:02:57.5]} 9. c3 {[%clk 0:02:46.3]} 9... Nbc6 {[%clk
0:02:57.1]} 10. dxc5 {[%clk 0:02:41]} 10... Nxe5 {[%clk 0:02:56.7]} 11. Be2
{[%clk 0:02:40.6]} 11... Nf5 {[%clk 0:02:52.8]} 12. Bb5+ {[%clk 0:02:37.6]}
12... Nc6 {[%clk 0:02:53.2]} 13. Bd4 {[%clk 0:02:38]} 13... Be7 {[%clk 0:02:51]}
14. Nd2 {[%clk 0:02:30.3]} 14... O-O {[%clk 0:02:50.7]} 15. Nf3 {[%clk
0:02:28.1]} 15... f6 {[%clk 0:02:47.7]} 16. Qc2 {[%clk 0:02:00.6]} 16... Qc8
{[%clk 0:02:47]} 17. Bxc6 {[%clk 0:01:02.6]} 17... bxc6 {[%clk 0:02:47.9]} 18.
b4 {[%clk 0:00:58.7]} 18... e5 {[%clk 0:02:38.5]} 19. Be3 {[%clk 0:00:58.7]}
19... axb4 {[%clk 0:02:34.4]} 20. cxb4 {[%clk 0:00:58.9]} 20... d4 {[%clk
0:02:34.9]} 21. Bd2 {[%clk 0:00:59]} 21... Rd8 {[%clk 0:02:34.5]} 22. Qc4+
{[%clk 0:00:57.7]} 22... Kh8 {[%clk 0:02:34.5]} 23. a4 {[%clk 0:00:57.4]} 23...
e4 {[%clk 0:02:34.2]} 24. Ne1 {[%clk 0:00:53.5]} 24... Rd5 {[%clk 0:02:31.7]}
25. Nc2 {[%clk 0:00:51.9]} 25... Nh4 {[%clk 0:02:30.9]} 26. Bf4 {[%clk
0:00:31.7]} 26... Nf5 {[%clk 0:01:45.2]} 27. Rfe1 {[%clk 0:00:29.7]} 27... d3
{[%clk 0:01:40.9]} 28. Ne3 {[%clk 0:00:29]} 28... Nxe3 {[%clk 0:01:41.3]} 29.
Bxe3 {[%clk 0:00:28.8]} 29... f5 {[%clk 0:01:41.6]} 30. a5 {[%clk 0:00:23.1]}
30... Bf6 {[%clk 0:01:42.1]} 31. Rad1 {[%clk 0:00:21.7]} 31... Be5 {[%clk
0:01:36.9]} 32. f3 {[%clk 0:00:19.3]} 32... Qe6 {[%clk 0:01:25.8]} 33. fxe4
{[%clk 0:00:17.6]} 33... fxe4 {[%clk 0:01:26.7]} 34. Bf2 {[%clk 0:00:17.3]}
34... Bxh2+ {[%clk 0:01:24.1]} 35. Kf1 {[%clk 0:00:14]} 35... Rf8 {[%clk
0:01:11.3]} 36. Qxe4 {[%clk 0:00:14.1]} 36... Rxf2+ {[%clk 0:01:08.6]} 37. Kxf2
{[%clk 0:00:13.7]} 37... Rf5+ {[%clk 0:01:09.5]} 38. Qxf5 {[%clk 0:00:10.4]}
38... Qxf5+ {[%clk 0:01:09.7]} 39. Ke3 {[%clk 0:00:11.3]} 39... Bf4+ {[%clk
0:01:07.9]} 40. Kd4 {[%clk 0:00:11.9]} 40... Qd5+ {[%clk 0:01:07.3]} 41. Kc3
{[%clk 0:00:12.4]} 41... Be5+ {[%clk 0:01:08]} 42. Kd2 {[%clk 0:00:12.9]} 42...
h5 {[%clk 0:01:05.7]} 43. a6 {[%clk 0:00:13]} 43... Qa2+ {[%clk 0:01:05.9]} 44.
Kxd3 {[%clk 0:00:13.4]} 44... Qxa6+ {[%clk 0:01:06]} 45. Ke4 {[%clk 0:00:12.5]}
45... Bc3 {[%clk 0:01:04.9]} 46. Kf5 {[%clk 0:00:12.9]} 46... Qc8+ {[%clk
0:01:02.5]} 47. Re6 {[%clk 0:00:11.3]} 47... Kh7 {[%clk 0:01:00.6]} 48. Rd6
{[%clk 0:00:10.5]} 48... Bxb4 {[%clk 0:00:57.3]} 49. Rxc6 {[%clk 0:00:11]} 49...
Qf8+ {[%clk 0:00:57.9]} 50. Ke4 {[%clk 0:00:11.5]} 50... Qf2 {[%clk 0:00:56.2]}
51. Kd5 {[%clk 0:00:10.4]} 51... Qxg2+ {[%clk 0:00:56.5]} 52. Kc4 {[%clk
0:00:11.2]} 52... Ba3 {[%clk 0:00:55.4]} 53. Red6 {[%clk 0:00:11]} 53... h4
{[%clk 0:00:54.5]} 54. Rd4 {[%clk 0:00:10.3]} 54... Qxc6 {[%clk 0:00:53.6]} 0-1

[Event "Early-Titled-Tuesday-Blitz-February-20-2024"]
[Site "Chess.com"]
[Date "2024.02.20"]
[Round "7"]
[White "AvitalBor"]
[Black "Sam_ChessMood"]
[Result "0-1"]
[WhiteElo "2764"]
[BlackElo "2939"]
[TimeControl "180+1"]
[EndTime "9:19:35 PST"]
[Termination "Sam_ChessMood won by resignation"]

1. a3 {[%clk 0:03:00.9]} 1... e5 {[%clk 0:02:57]} 2. c4 {[%clk 0:03:00.7]} 2...
Nf6 {[%clk 0:02:56.3]} 3. Nc3 {[%clk 0:03:00.1]} 3... d5 {[%clk 0:02:53.2]} 4.
cxd5 {[%clk 0:03:00.4]} 4... Nxd5 {[%clk 0:02:54.1]} 5. e4 {[%clk 0:02:57.5]}
5... Nf6 {[%clk 0:02:51.4]} 6. Nf3 {[%clk 0:02:56.7]} 6... Nc6 {[%clk
0:02:39.8]} 7. Bb5 {[%clk 0:02:56.8]} 7... Bd6 {[%clk 0:02:38.7]} 8. d4 {[%clk
0:02:53.6]} 8... exd4 {[%clk 0:02:07.2]} 9. Nxd4 {[%clk 0:02:50.9]} 9... O-O
{[%clk 0:02:05.1]} 10. Nxc6 {[%clk 0:02:41.2]} 10... bxc6 {[%clk 0:02:06]} 11.
Bxc6 {[%clk 0:02:41.6]} 11... Rb8 {[%clk 0:02:04.4]} 12. h3 {[%clk 0:02:32.5]}
12... Ba6 {[%clk 0:01:59.9]} 13. b4 {[%clk 0:02:25]} 13... Rb6 {[%clk
0:01:40.1]} 14. b5 {[%clk 0:02:19.1]} 14... Rxc6 {[%clk 0:01:40.4]} 15. bxc6
{[%clk 0:02:18.9]} 15... Re8 {[%clk 0:01:27.7]} 16. Be3 {[%clk 0:01:57.7]} 16...
Nxe4 {[%clk 0:01:15.1]} 17. Qa4 {[%clk 0:01:57.5]} 17... Qf6 {[%clk 0:01:05.3]}
18. Rc1 {[%clk 0:01:14.5]} 18... Nc5 {[%clk 0:00:57.7]} 19. Nd5 {[%clk
0:00:57.2]} 19... Nxa4 {[%clk 0:00:36.7]} 20. Nxf6+ {[%clk 0:00:57]} 20... gxf6
{[%clk 0:00:37.6]} 21. Kd2 {[%clk 0:00:57.5]} 21... Nb6 {[%clk 0:00:34.9]} 22.
Bd4 {[%clk 0:00:21]} 22... Bf4+ {[%clk 0:00:34.7]} 23. Kc3 {[%clk 0:00:15.4]}
23... Bxc1 {[%clk 0:00:33.9]} 24. Rxc1 {[%clk 0:00:16.3]} 24... Re6 {[%clk
0:00:33.2]} 25. Kb4 {[%clk 0:00:14.5]} 25... Kg7 {[%clk 0:00:31.3]} 26. f3
{[%clk 0:00:07.2]} 26... Be2 {[%clk 0:00:28.6]} 27. a4 {[%clk 0:00:06.4]} 27...
Kg6 {[%clk 0:00:22.2]} 28. a5 {[%clk 0:00:05]} 28... Nc8 {[%clk 0:00:22.2]} 29.
h4 {[%clk 0:00:02.2]} 29... h5 {[%clk 0:00:21.4]} 30. Rc5 {[%clk 0:00:02.5]}
30... Ne7 {[%clk 0:00:18.9]} 31. Bf2 {[%clk 0:00:02.7]} 31... Nxc6+ {[%clk
0:00:18]} 32. Ka4 {[%clk 0:00:02.9]} 32... a6 {[%clk 0:00:15.6]} 0-1